fUST/lending_fUST_20250206
["ID","MTS","AMOUNT","RATE_DAILY","PERIOD"]
[351800568,1738792252426,-834.91,0.00013835,2]
[351800571,1738792252436,-500.0,0.00013835,2]
[351800573,1738792252445,-500.0,0.00013835,2]
[351800575,1738792252455,-500.0,0.00013835,2]
[351800577,1738792252464,-500.0,0.00013835,2]
[351800579,1738792252473,-500.0,0.00013835,2]
[351800580,1738792252484,-500.0,0.00013835,2]
[351800582,1738792252493,-500.0,0.00013835,2]
[351800584,1738792252503,-6070.92,0.00013835,2]
[351800586,1738792252512,-1471.66,0.00013835,2]
[351800588,1738792252522,-1015.89,0.00013835,2]
[351800590,1738792252531,-606.31,0.00013835,2]
[351800592,1738792252542,-500.0,0.00013835,2]
[351800594,1738792252551,-512.42,0.00013835,2]
[351800596,1738792252561,-4619.05,0.00013835,2]
[351800598,1738792252570,-2603.71,0.00013835,2]
[351800600,1738792252580,-1287.57,0.00013835,2]
[351800602,1738792252590,-1893.02,0.00013835,2]
[351800605,1738792252600,-500.0,0.00013835,2]
[351800606,1738792252610,-8304.42,0.00013835,2]
[351800609,1738792252620,-500.0,0.00013835,2]
[351800610,1738792252629,-151.0,0.00013835,2]
[351800612,1738792252639,-151.0,0.00013835,2]
[351800614,1738792252649,-500.0,0.00013835,2]
[351800616,1738792252659,-534.21,0.00013835,2]
[351800618,1738792252668,-5830.28,0.00013835,2]
[351800620,1738792252677,-500.0,0.00013835,2]
[351800622,1738792252686,-918.76,0.00013835,2]
[351800624,1738792252696,-500.0,0.00013835,2]
[351800626,1738792252705,-510.88229305,0.00013835,2]
[351800628,1738792252714,-500.0,0.00013835,2]
[351800630,1738792252724,-151.0,0.00013835,2]
[351800632,1738792252734,-966.23,0.00013835,2]
[351800634,1738792252744,-512.9,0.00013835,2]
[351800636,1738792252753,-500.0,0.00013835,2]
[351800638,1738792252763,-151.0,0.00013835,2]
[351800640,1738792252772,-151.0,0.00013835,2]
[351800642,1738792252781,-500.0,0.00013835,2]
[351800644,1738792252791,-500.0,0.00013835,2]
[351800646,1738792252801,-500.0,0.00013835,2]
[351800648,1738792252810,-280.72192247,0.00013835,2]
[351800650,1738792252820,-500.0,0.00013835,2]
[351800652,1738792252830,-1849.9,0.00013835,2]
[351800654,1738792252839,-501.55642339,0.00013835,2]
[351800656,1738792252849,-521.34,0.00013835,2]
[351800658,1738792252859,-500.0,0.00013835,2]
[351800660,1738792252869,-2869.91,0.00013835,2]
[351800662,1738792252879,-500.0,0.00013835,2]
[351800664,1738792252889,-622.6,0.00013835,2]
[351800665,1738792252899,-500.0,0.00013835,2]
[351800666,1738792252909,-500.0,0.00013835,2]
[351800667,1738792252918,-6483.45287221,0.00013835,2]
[351800695,1738792253282,-9024.51893903,0.00013835,2]
[351800697,1738792253295,-4535.30537946,0.00013835,2]
[351800699,1738792253308,-15059.4828093,0.00013835,2]
[351800701,1738792253318,-500.0,0.00013835,2]
[351800703,1738792253329,-500.0,0.00013835,2]
[351800705,1738792253339,-567.6,0.00013835,2]
[351800707,1738792253349,-716.53,0.00013835,2]
[351800709,1738792253359,-500.0,0.00013835,2]
[351800711,1738792253369,-653.91,0.00013835,2]
[351800713,1738792253380,-239.439049,0.00013835,2]
[351800715,1738792253390,-239.439049,0.00013835,2]
[351800717,1738792253400,-239.439049,0.00013835,2]
[351800720,1738792253410,-223.95924897,0.00013835,2]
[351800722,1738792253423,-276.04075103,0.00013835,2]
[351800724,1738792253432,-628.58,0.00013835,2]
[351800726,1738792253442,-826.06,0.00013835,2]
[351800728,1738792253452,-2528.05,0.00013835,2]
[351800730,1738792253462,-239.439049,0.00013835,2]
[351800732,1738792253472,-676.99,0.00013835,2]
[351800734,1738792253482,-239.439049,0.00013835,2]
[351800736,1738792253494,-500.0,0.00013835,2]
[351800738,1738792253504,-239.439049,0.00013835,2]
[351800740,1738792253514,-3532.03,0.00013835,2]
[351800742,1738792253524,-141.26541228,0.00013835,2]
[351800744,1738792253537,-358.73458772,0.00013835,2]
[351800746,1738792253548,-5637.47,0.00013835,2]
[351800748,1738792253557,-920.04,0.00013835,2]
[351800750,1738792253567,-500.0,0.00013835,2]
[351800752,1738792253577,-500.0,0.00013835,2]
[351800754,1738792253587,-500.0,0.00013835,2]
[351800756,1738792253597,-500.0,0.00013835,2]
[351800758,1738792253607,-1156.7555638,0.00013835,2]
[351800761,1738792253620,-1499.6244362,0.00013835,2]
[351800763,1738792253630,-7469.48,0.00013835,2]
[351800765,1738792253640,-1138.25,0.00013835,2]
[351800767,1738792253651,-534.23,0.00013835,2]
[351800769,1738792253661,-500.0,0.00013835,2]
[351800771,1738792253671,-555.40113007,0.00013835,2]
[351800773,1738792253682,-500.0,0.00013835,2]
[351800775,1738792253692,-160.630029,0.00013835,2]
[351800778,1738792253703,-678.4,0.00013835,2]
[351800780,1738792253713,-500.0,0.00013835,2]
[351800782,1738792253723,-160.630029,0.00013835,2]
[351800784,1738792253735,-500.0,0.00013835,2]
[351800786,1738792253745,-586.48,0.00013835,2]
[351800788,1738792253756,-160.630029,0.00013835,2]
[351800790,1738792253767,-160.630029,0.00013835,2]
[351800792,1738792253777,-3879.29,0.00013835,2]
[351800794,1738792253787,-288.21855819,0.00013835,2]
[351800796,1738792253796,-2561.91,0.00013835,2]
[351800798,1738792253807,-364.44295511,0.00013835,2]
[351800800,1738792253816,-70124.17634206,0.00013835,2]
[351800802,1738792253830,-674.17155353,0.00013835,2]
[351800804,1738792253842,-758.4281794,0.00013835,2]
[351800807,1738792253855,-1049.99999997,0.00013835,2]
[351800809,1738792253867,-395.0,0.00013835,2]
[351800811,1738792253879,-285.43980486,0.00013835,2]
[351800848,1738792254227,-38000.97412018,0.00013835,2]
[351800850,1738792254237,-581.83,0.00013835,2]
[351800852,1738792254248,-500.0,0.00013835,2]
[351800854,1738792254258,-612.81846506,0.00013835,2]
[351800856,1738792254269,-151.0,0.00013835,2]
[351800858,1738792254279,-151.0,0.00013835,2]
[351800860,1738792254290,-151.0,0.00013835,2]
[351800862,1738792254300,-2855.1,0.00013835,2]
[351800864,1738792254310,-500.0,0.00013835,2]
[351800866,1738792254320,-500.0,0.00013835,2]
[351800868,1738792254330,-500.0,0.00013835,2]
[351800870,1738792254340,-500.0,0.00013835,2]
[351800872,1738792254350,-500.0,0.00013835,2]
[351800874,1738792254361,-4963.33,0.00013835,2]
[351800876,1738792254371,-500.0,0.00013835,2]
[351800896,1738792254538,-500.0,0.00013835,2]
[351800898,1738792254547,-500.0,0.00013835,2]
[351800900,1738792254557,-6939.28,0.00013835,2]
[351800902,1738792254567,-500.0,0.00013835,2]
[351800904,1738792254577,-500.0,0.00013835,2]
[351800906,1738792254587,-500.0,0.00013835,2]
[351800908,1738792254596,-500.0,0.00013835,2]
[351800910,1738792254606,-500.0,0.00013835,2]
[351800912,1738792254616,-500.0,0.00013835,2]
[351800914,1738792254625,-151.0,0.0001384,2]
[351800916,1738792254635,-153.0,0.00013841,2]
[351800918,1738792254645,-153.0,0.00013841,2]
[351800920,1738792254654,-153.0,0.00013841,2]
[351800922,1738792254664,-153.0,0.00013841,2]
[351800924,1738792254673,-153.0,0.00013841,2]
[351800926,1738792254683,-153.0,0.00013841,2]
[351800928,1738792254692,-153.0,0.00013841,2]
[351800930,1738792254702,-153.0,0.00013841,2]
[351800932,1738792254712,-153.0,0.00013841,2]
[351800934,1738792254722,-153.0,0.00013841,2]
[351800936,1738792254732,-153.0,0.00013841,2]
[351800938,1738792254742,-153.0,0.00013841,2]
[351800940,1738792254752,-153.0,0.00013841,2]
[351800942,1738792254762,-153.0,0.00013841,2]
[351800944,1738792254771,-153.0,0.00013841,2]
[351800946,1738792254781,-153.0,0.00013841,2]
[351800948,1738792254791,-153.0,0.00013841,2]
[351800950,1738792254801,-153.0,0.00013841,2]
[351800952,1738792254811,-153.0,0.00013841,2]
[351800954,1738792254821,-153.0,0.00013841,2]
[351800956,1738792254831,-153.0,0.00013841,2]
[351800958,1738792254840,-153.0,0.00013841,2]
[351800960,1738792254849,-153.0,0.00013841,2]
[351800962,1738792254860,-153.0,0.00013841,2]
[351800964,1738792254869,-153.0,0.00013841,2]
[351800966,1738792254879,-153.0,0.00013841,2]
[351800968,1738792254888,-153.0,0.00013841,2]
[351800970,1738792254898,-153.0,0.00013841,2]
[351800972,1738792254909,-153.0,0.00013841,2]
[351800974,1738792254918,-153.0,0.00013841,2]
[351800976,1738792254928,-153.0,0.00013841,2]
[351800978,1738792254939,-153.0,0.00013841,2]
[351800980,1738792254949,-153.0,0.00013841,2]
[351800982,1738792254960,-153.0,0.00013841,2]
[351800984,1738792254970,-153.0,0.00013841,2]
[351800986,1738792254979,-153.0,0.00013841,2]
[351800988,1738792254990,-153.0,0.00013841,2]
[351800990,1738792255001,-153.0,0.00013841,2]
[351800992,1738792255011,-153.0,0.00013841,2]
[351800994,1738792255021,-153.0,0.00013841,2]
[351800996,1738792255031,-153.0,0.00013841,2]
[351800998,1738792255045,-153.0,0.00013841,2]
[351801001,1738792255055,-153.0,0.00013841,2]
[351801003,1738792255065,-1000.0,0.000139,2]
[351801005,1738792255076,-153.0,0.00013922,2]
[351801006,1738792255086,-153.0,0.00013922,2]
[351801008,1738792255095,-153.0,0.00013922,2]
[351801010,1738792255105,-153.0,0.00013922,2]
[351801012,1738792255115,-153.0,0.00013922,2]
[351801014,1738792255124,-153.0,0.00013922,2]
[351801016,1738792255134,-153.0,0.00013922,2]
[351801018,1738792255144,-153.0,0.00013922,2]
[351801020,1738792255155,-153.0,0.00013922,2]
[351801022,1738792255164,-153.0,0.00013922,2]
[351801024,1738792255174,-153.0,0.00013922,2]
[351801026,1738792255183,-153.0,0.00013922,2]
[351801028,1738792255192,-153.0,0.00013922,2]
[351801030,1738792255202,-153.0,0.00013922,2]
[351801032,1738792255212,-153.0,0.00013922,2]
[351801034,1738792255222,-153.0,0.00013922,2]
[351801036,1738792255232,-153.0,0.00013922,2]
[351801038,1738792255243,-153.0,0.00013922,2]
[351801040,1738792255253,-153.0,0.00013922,2]
[351801042,1738792255264,-153.0,0.00013922,2]
[351801044,1738792255274,-153.0,0.00013922,2]
[351801046,1738792255284,-153.0,0.00013922,2]
[351801048,1738792255294,-153.0,0.00013922,2]
[351801050,1738792255304,-153.0,0.00013922,2]
[351801052,1738792255314,-153.0,0.00013922,2]
[351801054,1738792255323,-153.0,0.00013922,2]
[351801056,1738792255333,-153.0,0.00013922,2]
[351801058,1738792255343,-153.0,0.00013922,2]
[351801061,1738792255354,-153.0,0.00013922,2]
[351801062,1738792255364,-153.0,0.00013922,2]
[351801065,1738792255375,-153.0,0.00013922,2]
[351801067,1738792255384,-153.0,0.00013922,2]
[351801068,1738792255394,-153.0,0.00013922,2]
[351801071,1738792255404,-153.0,0.00013922,2]
[351801073,1738792255414,-153.0,0.00013922,2]
[351801075,1738792255424,-153.0,0.00013922,2]
[351801077,1738792255434,-153.0,0.00013922,2]
[351801079,1738792255444,-153.0,0.00013922,2]
[351801081,1738792255454,-153.0,0.00013922,2]
[351801083,1738792255464,-153.0,0.00013922,2]
[351801085,1738792255473,-153.0,0.00013922,2]
[351801087,1738792255484,-153.0,0.00013922,2]
[351801089,1738792255494,-153.0,0.00013922,2]
[351801091,1738792255504,-153.0,0.00013922,2]
[351801093,1738792255514,-153.0,0.00013922,2]
[351801095,1738792255524,-153.0,0.00013922,2]
[351801097,1738792255536,-153.0,0.00013922,2]
[351801099,1738792255546,-153.0,0.00013922,2]
[351801101,1738792255556,-153.0,0.00013922,2]
[351801103,1738792255566,-153.0,0.00013922,2]
[351801105,1738792255575,-153.0,0.00013922,2]
[351801107,1738792255585,-153.0,0.00013922,2]
[351801109,1738792255594,-153.0,0.00013922,2]
[351801111,1738792255604,-153.0,0.00013922,2]
[351801113,1738792255613,-153.0,0.00013922,2]
[351801114,1738792255622,-153.0,0.00013922,2]
[351801115,1738792255632,-153.0,0.00013922,2]
[351801116,1738792255641,-153.0,0.00013922,2]
[351801117,1738792255650,-153.0,0.00013922,2]
[351801118,1738792255659,-153.0,0.00013922,2]
[351801119,1738792255669,-153.0,0.00013922,2]
[351801120,1738792255678,-153.0,0.00013922,2]
[351801121,1738792255687,-153.0,0.00013922,2]
[351801122,1738792255696,-153.0,0.00013922,2]
[351801123,1738792255706,-153.0,0.00013922,2]
[351801124,1738792255715,-153.0,0.00013922,2]
[351801125,1738792255724,-5000.0,0.00013953,2]
[351801126,1738792255734,-276.06473766,0.00013971,2]
[351801127,1738792255744,-151.0,0.00013972,2]
[351801129,1738792255754,-151.0,0.00013972,2]
[351801131,1738792255763,-151.0,0.00013972,2]
[351801133,1738792255773,-151.0,0.00013972,2]
[351801135,1738792255783,-151.0,0.00013972,2]
[351801137,1738792255793,-151.0,0.00013972,2]
[351801139,1738792255802,-660.92,0.00013972,2]
[351801141,1738792255811,-556.35,0.00013972,2]
[351801143,1738792255821,-500.0,0.00013972,2]
[351801145,1738792255831,-151.0,0.00013972,2]
[351801147,1738792255840,-151.0,0.00013972,2]
[351801149,1738792255850,-640.69,0.00013972,2]
[351801151,1738792255859,-500.0,0.00013972,2]
[351801153,1738792255869,-1275.43,0.00013972,2]
[351801155,1738792255879,-767.7,0.00013972,2]
[351801158,1738792255889,-500.0,0.00013972,2]
[351801159,1738792255899,-176.77856364,0.00013972,2]
[351801161,1738792255908,-552.07,0.00013972,2]
[351801163,1738792255918,-500.0,0.00013972,2]
[351801165,1738792255927,-500.0,0.00013972,2]
[351801167,1738792255938,-500.0,0.00013972,2]
[351801169,1738792255947,-500.0,0.00013972,2]
[351801171,1738792255957,-500.0,0.00013972,2]
[351801173,1738792255967,-800.44,0.00013972,2]
[351801175,1738792255977,-151.0,0.00013972,2]
[351801177,1738792255988,-151.0,0.00013972,2]
[351801179,1738792255998,-500.0,0.00013972,2]
[351801182,1738792256009,-500.0,0.00013972,2]
[351801183,1738792256019,-500.0,0.00013972,2]
[351801186,1738792256030,-500.0,0.00013972,2]
[351801187,1738792256043,-201.9818426,0.00013972,2]
[351801189,1738792256052,-500.0,0.00013972,2]
[351801191,1738792256063,-164.81784059,0.00013972,2]
[351801194,1738792256079,-200.8566917,0.00013972,2]
[351801196,1738792256090,-151.0,0.00013972,2]
[351801198,1738792256101,-151.0,0.00013972,2]
[351801200,1738792256111,-500.0,0.00013972,2]
[351801202,1738792256121,-527.81,0.00013972,2]
[351801204,1738792256132,-500.0,0.00013972,2]
[351801206,1738792256142,-500.0,0.00013972,2]
[351801208,1738792256152,-500.0,0.00013972,2]
[351801210,1738792256161,-500.0,0.00013972,2]
[351801212,1738792256171,-701.11,0.00013972,2]
[351801214,1738792256181,-500.0,0.00013972,2]
[351801216,1738792256191,-509.6120943,0.00013972,2]
[351801259,1738792256605,-51.0079057,0.00013972,2]
[351801261,1738792256615,-448.9920943,0.00013972,2]
[351801290,1738792256881,-65.2379057,0.00013972,2]
[351801292,1738792256891,-206.95330172,0.00013972,2]
[351804325,1738792381485,-1000000.0,0.00021344,61]
[351804326,1738792395330,-1000000.0,0.00021344,61]
[351804327,1738792399673,-1000000.0,0.00021344,61]
[351804328,1738792411629,-2827369.09168996,0.00021344,61]
[351804329,1738792411655,-2172630.90831004,0.00021344,61]
[351804330,1738792425190,-1936728.24196808,0.00021344,61]
[351804331,1738792425217,-1766336.44981211,0.00021344,61]
[351804332,1738792425243,-391158.89148183,0.00021344,61]
[351804333,1738792425271,-385555.50243101,0.00021344,61]
[351804334,1738792425300,-353078.16320028,0.00021344,61]
[351804335,1738792425328,-167142.75110669,0.00021344,61]
[351804336,1738792437720,-118000.85660766,0.00021344,61]
[351804337,1738792437746,-626952.30477723,0.00021344,61]
[351804338,1738792437772,-191125.49255422,0.00021344,120]
[351804339,1738792437800,-377861.61829701,0.00021344,61]
[351804340,1738792437826,-305871.90580567,0.00021344,61]
[351804341,1738792437853,-755355.12115242,0.00021344,61]
[351804342,1738792437883,-1265.57902821,0.00021344,120]
[351804343,1738792437908,-1582.50735578,0.00021344,120]
[351804344,1738792437932,-2526.91878208,0.00021344,120]
[351804345,1738792437958,-591.17387576,0.00021344,120]
[351804346,1738792437982,-211.5023136,0.00021344,120]
[351804347,1738792438007,-310.50348171,0.00021344,120]
[351804348,1738792438032,-380687.99367606,0.00021344,61]
[351804349,1738792438058,-360165.59058027,0.00021344,61]
[351804350,1738792438082,-500.0,0.00021344,120]
[351804351,1738792438112,-1876990.93171232,0.00021344,61]
[351804352,1738792442089,-420.0,0.00020438,120]
[351804373,1738793432340,-317.7,0.0001237,2]
[351804374,1738793432351,-354.01412771,0.00012395,2]
[351804375,1738793432363,-188.39098644,0.00012395,2]
[351804376,1738793432373,-694.2331997,0.00012452,2]
[351804377,1738793432382,-537.4491748,0.00012552,2]
[351804378,1738793432393,-763.6709934,0.00012636,2]
[351804379,1738793432404,-264.17705705,0.00012833,2]
[351804380,1738793432418,-935.82294295,0.00012833,2]
[351804381,1738793432429,-1.2223677,0.000135,2]
[351804448,1738793438330,-273.08626575,0.000135,2]
[351804449,1738793438340,-237.68107349,0.00013597,2]
[351804450,1738793438349,-572.61566424,0.00013598,2]
[351804451,1738793438358,-300.0,0.00013689,2]
[351804452,1738793438367,-3575.52583681,0.0001369,2]
[351804453,1738793438378,-1784.33964364,0.0001369,2]
[351804454,1738793438441,-4640.13451955,0.0001369,2]
[351804455,1738793438451,-194.1863234,0.0001369,2]
[351804456,1738793438461,-500.0,0.00013697,2]
[351804457,1738793438471,-341.20989767,0.00013697,2]
[351804459,1738793438480,-500.0,0.00013697,2]
[351804462,1738793438489,-500.0,0.00013697,2]
[351804465,1738793438500,-500.0,0.00013697,2]
[351804467,1738793438510,-500.0,0.00013697,2]
[351804469,1738793438519,-500.0,0.00013697,2]
[351804471,1738793438529,-447.48248786,0.00013697,2]
[351804473,1738793438538,-404.28703753,0.00013697,2]
[351804475,1738793438547,-524.307,0.00013697,2]
[351804477,1738793438557,-502.36438095,0.00013698,2]
[351804479,1738793438566,-500.0,0.00013698,2]
[351804481,1738793438576,-501.87761352,0.00013698,2]
[351804483,1738793438586,-500.0,0.00013698,2]
[351804485,1738793438595,-500.0,0.00013698,2]
[351804487,1738793438604,-580.00675631,0.00013698,2]
[351804489,1738793438614,-500.0,0.00013698,2]
[351804491,1738793438623,-500.0,0.00013698,2]
[351804493,1738793438633,-504.00889687,0.00013698,2]
[351804495,1738793438642,-501.71050331,0.00013698,2]
[351804497,1738793438651,-500.0,0.00013698,2]
[351804499,1738793438660,-503.54681865,0.00013698,2]
[351804501,1738793438670,-500.0,0.00013698,2]
[351804503,1738793438681,-588.83611458,0.00013698,2]
[351804505,1738793438690,-502.59010791,0.00013698,2]
[351804507,1738793438700,-511.0365974,0.00013698,2]
[351804509,1738793438710,-515.73902246,0.00013698,2]
[351804511,1738793438719,-501.90805938,0.00013698,2]
[351804513,1738793438729,-504.5196841,0.00013698,2]
[351804515,1738793438739,-506.17343592,0.00013698,2]
[351804517,1738793438749,-500.0,0.00013698,2]
[351804519,1738793438758,-512.0629643,0.00013698,2]
[351804521,1738793438767,-500.0,0.00013698,2]
[351804524,1738793438777,-500.0,0.00013698,2]
[351804525,1738793438786,-500.0,0.00013698,2]
[351804527,1738793438796,-596.33640238,0.00013698,2]
[351804530,1738793438805,-500.0,0.00013698,2]
[351804532,1738793438814,-310.09197429,0.00013698,2]
[351804533,1738793438824,-228.77619763,0.00013698,2]
[351804535,1738793438832,-500.0,0.00013698,2]
[351804537,1738793438842,-500.0,0.00013698,2]
[351804539,1738793438851,-500.0,0.00013698,2]
[351804541,1738793438860,-500.0,0.00013698,2]
[351804544,1738793438870,-500.0,0.00013698,2]
[351804546,1738793438879,-500.0,0.00013698,2]
[351804547,1738793438889,-500.0,0.00013698,2]
[351804549,1738793438898,-377.76420344,0.00013698,2]
[351804551,1738793438907,-500.0,0.00013698,2]
[351804554,1738793438916,-500.0,0.00013698,2]
[351804556,1738793438926,-500.0,0.00013698,2]
[351804558,1738793438938,-589.94,0.00013698,2]
[351804560,1738793438947,-806.19,0.00013698,2]
[351804562,1738793438956,-501.06685821,0.00013698,2]
[351804564,1738793438966,-500.0,0.00013698,2]
[351804566,1738793438976,-500.0,0.00013698,2]
[351804568,1738793438985,-681.71,0.00013698,2]
[351804569,1738793438994,-499.23502419,0.00013698,2]
[351804572,1738793439004,-500.0,0.00013698,2]
[351804574,1738793439013,-500.0,0.00013698,2]
[351804576,1738793439024,-500.0,0.00013698,2]
[351804578,1738793439033,-630.88,0.00013698,2]
[351804580,1738793439042,-500.0,0.00013698,2]
[351804582,1738793439052,-1240.72,0.00013698,2]
[351804584,1738793439062,-625.16,0.00013698,2]
[351804586,1738793439071,-509.33224968,0.00013698,2]
[351804588,1738793439081,-500.0,0.00013698,2]
[351804590,1738793439090,-1011.96,0.00013698,2]
[351804592,1738793439099,-500.0,0.00013698,2]
[351804594,1738793439108,-500.0,0.00013698,2]
[351804596,1738793439117,-500.0,0.00013698,2]
[351804598,1738793439127,-500.0,0.00013698,2]
[351804600,1738793439136,-500.0,0.00013698,2]
[351804602,1738793439146,-569.16,0.00013698,2]
[351804604,1738793439155,-500.0,0.00013698,2]
[351804606,1738793439165,-1465.44,0.00013698,2]
[351804608,1738793439174,-585.75,0.00013698,2]
[351804610,1738793439185,-500.0,0.00013698,2]
[351804612,1738793439195,-408.81377868,0.00013698,2]
[351804614,1738793439205,-500.0,0.00013698,2]
[351804616,1738793439214,-504.7027059,0.00013698,2]
[351804618,1738793439224,-500.0,0.00013698,2]
[351804620,1738793439234,-500.0,0.00013698,2]
[351804622,1738793439243,-1000.0,0.00013698,2]
[351804624,1738793439252,-790.0,0.00013698,2]
[351804626,1738793439262,-613.42,0.00013698,2]
[351804628,1738793439272,-500.0,0.00013698,2]
[351804630,1738793439282,-294.52321922,0.00013698,2]
[351804632,1738793439291,-754.18,0.00013698,2]
[351804634,1738793439301,-500.0,0.00013698,2]
[351804636,1738793439310,-1439.88,0.00013698,2]
[351804638,1738793439320,-500.0,0.00013698,2]
[351804640,1738793439329,-504.46962706,0.00013698,2]
[351804642,1738793439338,-500.0,0.00013698,2]
[351804644,1738793439347,-500.0,0.00013698,2]
[351804647,1738793439358,-500.0,0.00013698,2]
[351804648,1738793439367,-500.0,0.00013698,2]
[351804651,1738793439376,-505.19265801,0.00013698,2]
[351804653,1738793439387,-500.0,0.00013698,2]
[351804655,1738793439397,-500.0,0.00013698,2]
[351804657,1738793439407,-188.0,0.00013698,2]
[351804658,1738793439419,-500.0,0.00013698,2]
[351804661,1738793439428,-503.16944459,0.00013698,2]
[351804662,1738793439439,-500.0,0.00013698,2]
[351804665,1738793439449,-507.65782551,0.00013698,2]
[351804667,1738793439459,-500.0,0.00013698,2]
[351804669,1738793439468,-500.0,0.00013698,2]
[351804671,1738793439477,-500.0,0.00013698,2]
[351804673,1738793439487,-500.0,0.00013698,2]
[351804675,1738793439499,-500.0,0.00013698,2]
[351804676,1738793439508,-500.0,0.00013698,2]
[351804679,1738793439517,-500.0,0.00013698,2]
[351804681,1738793439527,-500.0,0.00013698,2]
[351804683,1738793439536,-500.0,0.00013698,2]
[351804685,1738793439546,-500.0,0.00013698,2]
[351804687,1738793439555,-500.0,0.00013698,2]
[351804689,1738793439566,-500.0,0.00013698,2]
[351804691,1738793439575,-500.0,0.00013698,2]
[351804693,1738793439585,-500.0,0.00013698,2]
[351804695,1738793439594,-500.0,0.00013698,2]
[351804697,1738793439604,-158.56,0.00013698,2]
[351804698,1738793439613,-500.0,0.00013698,2]
[351804700,1738793439623,-500.0,0.00013698,2]
[351804703,1738793439633,-500.0,0.00013698,2]
[351804705,1738793439642,-500.0,0.00013698,2]
[351804707,1738793439652,-500.0,0.00013698,2]
[351804708,1738793439661,-505.7492854,0.00013698,2]
[351804710,1738793439670,-500.0,0.00013698,2]
[351804712,1738793439681,-500.0,0.00013698,2]
[351804715,1738793439691,-500.0,0.00013698,2]
[351804718,1738793439701,-500.0,0.00013698,2]
[351804757,1738793439876,-500.0,0.00013698,2]
[351804760,1738793439886,-597.13142421,0.00013698,2]
[351804763,1738793439896,-500.0,0.00013698,2]
[351804765,1738793439905,-500.0,0.00013698,2]
[351804767,1738793439915,-500.0,0.00013698,2]
[351804770,1738793439924,-500.0,0.00013698,2]
[351804773,1738793439935,-500.0,0.00013698,2]
[351804776,1738793439944,-500.0,0.00013698,2]
[351804779,1738793439953,-500.0,0.00013698,2]
[351804782,1738793439962,-500.0,0.00013698,2]
[351804785,1738793439972,-500.0,0.00013698,2]
[351804788,1738793439982,-500.0,0.00013698,2]
[351804790,1738793439991,-500.0,0.00013698,2]
[351804792,1738793440001,-500.0,0.00013698,2]
[351804794,1738793440010,-548.83,0.00013698,2]
[351804796,1738793440019,-300.0,0.00013698,2]
[351804798,1738793440029,-500.0,0.00013698,2]
[351804800,1738793440040,-500.0,0.00013698,2]
[351804802,1738793440050,-525.5,0.00013698,2]
[351804804,1738793440059,-500.0,0.00013698,2]
[351804806,1738793440069,-500.0,0.00013698,2]
[351804808,1738793440078,-500.0,0.00013698,2]
[351804810,1738793440088,-909.85,0.00013698,2]
[351804812,1738793440097,-500.0,0.00013698,2]
[351804814,1738793440107,-418.92227912,0.00013698,2]
[351804816,1738793440118,-500.0,0.00013698,2]
[351804818,1738793440127,-500.0,0.00013698,2]
[351804820,1738793440136,-500.0,0.00013698,2]
[351804822,1738793440145,-500.0,0.00013698,2]
[351804824,1738793440155,-500.0,0.00013698,2]